Workbook

Sheet Application
A1: HORTICULTURAL LIGHTING SOLUTION APPLICATION FOR PROJECTS COMPLETED BY 12/31/2022
A6: COMPLETE ALL SECTIONS. INCOMPLETE APPLICATIONS CANNOT BE PROCESSED AND WILL DELAY PAYMENT OF INCENTIVES. APPLICATIONS MUST BE SUBMITTED WITHIN 60 DAYS OF COMPLETED PROJECT INSTALLATION, NO LATER THAN JANUARY 31, 2023. FOR ADDITIONAL COPIES OF THIS FORM, VISIT FOCUSONENERGY.COM/CATALOGS.
J7: CUSTOMER CONTACT INFORMATION
J9: JOB SITE CUSTOMER CONTACT NAME
B11: ACCOUNT AND CUSTOMER INFORMATION | J11: PRIMARY PHONE # | L11: E-MAIL ADDRESS
B12: TAX IDENTIFICATION NUMBER (Check one.) | F12: FEIN OR | G12: SSN | J12: I opt in to receive program updates via text message.
B13: IF YOU USE A SOCIAL SECURITY NUMBER (SSN) AS YOUR TAX IDENTIFICATION NUMBER, DO NOT PROVIDE IT BELOW. YOU WILL BE CONTACTED BY THE PROGRAM VIA E-MAIL TO PROVIDE A COPY OF YOUR W-9 USING A SECURE ONLINE PORTAL, IF IT IS NOT ALREADY ON FILE. YOU MUST LIST | J13: Preferred method of contact:
J14: Call | K14: E-mail | L14: Text
J15: If Focus on Energy has a question about this application, we should contact:
B16: AN E-MAIL ADDRESS IN SECTION 3. | J16: Customer | K16: Trady Ally | L16: Other
F17: FEIN
B18: BUSINESS CLASSIFICATION OF CUSTOMER
B19: (Check one. Required for all businesses, including non-profits.) | J19: TRADE ALLY INFORMATION
B20: Sole Proprietorship | D20: Individual | F20: Single Member - LLC
B21: C Corporation | D21: S Corporation | F21: Partnership | J21: TRADE ALLY CONTACT NAME
B22: Limited Liability Company - C Corp | F22: Limited Liability Company - S Corp
B23: Limited Liability Company - Partnership | J23: PRIMARY PHONE # | L23: E-MAIL ADDRESS
B24: Other:
J25: TRADE ALLY COMPANY NAME
B27: OWNER NAME (REQUIRED IF SSN IS USED AS TAX IDENTIFICATION NUMBER) | J27: ADDRESS
B29: COMPANY NAME | J29: CITY | M29: STATE | N29: ZIP
B31: LEGAL ADDRESS (AS SHOWN ON COMPANY W-9) | J31: BUSINESS PAYMENT INFORMATION
J32: Make incentive check payable to:
B33: CITY | F33: STATE | G33: ZIP | J33: Customer | K33: Trade Ally (complete item A)
J34: Other Payee (complete item B)
B35: WHO DID YOU WORK WITH FROM FOCUS ON ENERGY ON THIS PROJECT? (CONTACT NAME) | J35: Mail check to:
J36: Customer Address | K36: Job Site Address | M36: Trade Ally Address
B37: How did you hear about us? (Check one.) | J37: Other Payee or Alternate Address (complete below)
B38: Community Association/Agency | F38: Distributor/Supplier
B39: Focus Direct Mail/Postcard | F39: Focus Email | G39: Focus Event | J39: COMPANY NAME
B40: Focus Staff/Energy Advisor | F40: Focus Website | G40: Internet Search
B41: Manufacturer | E41: Nat'l Rebate Administrator | G41: Newspaper | J41: ADDRESS
B42: Past Participation | E42: Radio | F42: Social Media | G42: Trade Ally/Contractor
B43: Trade Show/Fair | E43: TV | F43: Utility Bill Insert/Direct Mail | J43: CITY | M43: STATE | N43: ZIP
B44: Utility Contact | E44: Utility Email | F44: Utility Website
B45: Word of Mouth - Referral | E45: Other: | J45: ATTENTION TO (OPTIONAL)
J46: A. For Trade Ally Payee
B47: JOB SITE INFORMATION | J47: To receive payment, a Trade Ally must be registered with a current W-9 on file. Provide the Trade Ally's Tax Identification Number. If you use a Social Security number as the company tax ID, do not provide it here.
B48: (Please refer to your utility bills for account numbers below.)
B50: JOB SITE BUSINESS NAME
J51: FEIN
B52: ELECTRIC UTILITY AT JOB SITE | F52: ELECTRIC ACCOUNT # | J52: B. For Other Payee
B53: N/A | F53: N/A | J53: 1. Individual Contact Information:
B54: GAS UTILITY AT JOB SITE | F54: GAS ACCOUNT #
J55: NAME | L55: EMAIL ADDRESS
B56: Job Site Address is same as Legal Address | J56: 2. Specify relationship to utility account holder (this is required if check is payable to someone other than the Customer or Trade Ally):
B57: Job Site Address is different (complete below.)
J58: Tenant Building Owner | L58: Other (specify)
J59: 3. Select your business classification (Check one. Required for all businesses, including non-profits.)
B60: JOB SITE ADDRESS
J61: Sole Proprietorship | K61: Individual | L61: Single-Member LLC | N61: C Corporation
B62: CITY | F62: STATE | G62: ZIP | J62: S Corporation | K62: Partnership | L62: LLC - C Corp | M62: LLC - S Corp
J63: LLC - Partnership | K63: Other
J64: 4. A representative of Focus on Energy will reach out to you via email with a method to securely provide a copy of your W-9. This is required to receive payment. Provide the email address (if different than the one provided above):

Sheet Calculations
A1: Insert/Embed both Baseline and Energy Efficient LED Energy Usage Calculations
B3: Notes and requirements for calculations:
B4: • All savings calculations are treated as confidential and will not be shared outside of Focus on Energy
B5: • Formulas used in savings calculations need to be viewable to Focus on Energy review team
B6: • Calculations must show or describe how the hours of use are derived for both baseline and energy efficient designs
B7: • Baseline design must be practical and a viable option to the customer that uses the same Photosynthetic Photon Flux Density (PPFD) as the energy efficient LED design
B8: • Calculations will need to output the Annual Electrical Usage (kWh), Electrical Demand (kW), and Cost for both the baseline and the energy efficient design. These are input on the "Savings and Incentives" tab.

Sheet Sample Calculations
A2: SAMPLE CALCULATION - Supplemented Greenhouse: | E2: SAMPLE CALCULATION - Non-Stacked Indoor Farm:
B3: Baseline Example | F3: Baseline Example
A4: Description | B4: Double Ended 1000W High Pressure Sodium | E4: Description | F4: Double Ended 1000W High Pressure Sodium
A5: # of Fixtures | B5: 242 | E5: # of Fixtures | F5: 242
A6: Fixture Wattage | B6: 1079 | E6: Fixture Wattage | F6: 1079
A7: Annual Operating Hours | B7: 3641 | E7: Annual Operating Hours | F7: 3641
A8: kW Demand | B8: =ROUND(B5*B6/1000,4) -> 261.118 | E8: kW Demand | F8: =ROUND(F5*F6/1000,4) -> 261.118
A9: Annual kWh Usage | B9: =ROUND(B8*B7,0) -> 950731 | E9: Annual kWh Usage | F9: =ROUND(F8*F7,0) -> 950731
A10: Customer blended $/kWh Rate | B10: 0.11 | E10: Customer blended $/kWh Rate | F10: 0.11
A11: Project Cost | B11: 154250 | E11: Project Cost | F11: 154250
B13: Proposed Energy Efficient LED Example | F13: Proposed Energy Efficient LED Example
A14: Description | B14: List Make and Model of the LED fixtures | E14: Description | F14: List Make and Model of the LED fixtures
A15: # of Fixtures | B15: 220 | E15: # of Fixtures | F15: 220
A16: Fixture Wattage | B16: 654 | E16: Fixture Wattage | F16: 654
A17: Proposed Annual Electrical Usage Without Controls (kWh) | B17: =((B15*B16)/1000)*B7 -> 523867.08 | E17: Proposed Annual Electrical Usage Without Controls (kWh) | F17: =((F15*F16)/1000)*F7 -> 523867.08
A18: Use of Controls? | B18: Yes | E18: Use of Controls? | F18: Yes
A19: Control Type | B19: Dimming | E19: Control Type | F19: Dimming
A20: Lighting Control Savings Factor | B20: 0.15 | E20: Lighting Control Savings Factor | F20: 0.15
A21: Annual Operating Hours | B21: =IFERROR(IF(B18="no",B7,B7*(1-B20)),"") -> 3094.85 | E21: Annual Operating Hours | F21: =IFERROR(IF(F18="no",F7,F7*(1-F20)),"") -> 3094.85
A23: Proposed Electrical Demand (kW) | B23: =ROUND(B15*B16/1000,2) -> 143.88 | E23: Proposed Electrical Demand (kW) | F23: =ROUND(F15*F16/1000,2) -> 143.88
A24: Proposed Annual Electrical Usage Without Controls | B24: =B15*(B16/1000)*B7 -> 523867.08 | E24: Proposed Annual Electrical Usage Without Controls | F24: =F15*(F16/1000)*F7 -> 523867.08
A25: Proposed Annual Electrical Usage With Controls | B25: =B15*(B16/1000)*B21 -> 445287.018 | E25: Proposed Annual Electrical Usage With Controls | F25: =F15*(F16/1000)*F21 -> 445287.018
A26: Project Cost | B26: 324150 | E26: Project Cost | F26: 324150
A28: ESTIMATED SAVINGS | B28: Example | E28: ESTIMATED SAVINGS | F28: Example
A29: kW Saved | B29: NA for Greenhouses | E29: kW Saved | F29: =F8-F23 -> 117.238
A30: Proposed Annual Electrical Savings With Controls | B30: =B9-B25 -> 505443.982 | E30: Proposed Annual Electrical Savings With Controls | F30: =F9-F25 -> 505443.982
A32: These are examples only, the number of lighting hours will need to be calculated for each project individually.
A33: Estimated Greenhouse Supplemental Lighting Hours - SAMPLE CALC | H33: Estimated Non-Stacked Indoor Farm Lighting Hours - SAMPLE CALC
A34: Month | B34: Avg.Daily Direct Solar Radiation | C34: % cloud cover | D34: Supplemental Light Est. Hours | E34: Days | F34: Total Hrs. Grow Lights On | H34: Month | I34: Est. Lighting Hours | J34: Days | K34: Total Hrs. Grow Lights On
A35: January | B35: 12.3 | C35: 0.46 | D35: 18 | E35: 31 | F35: =D35*E35 -> 558 | H35: January | I35: 0 | J35: 0 | K35: =I35*J35 -> 0
A36: February | B36: 15 | C36: 0.56 | D36: 16 | E36: 28 | F36: 448 | H36: February | I36: 0 | J36: 0 | K36: 0
A37: March | B37: 16.1 | C37: 0.67 | D37: 12 | E37: 31 | F37: 372 | H37: March | I37: 16 | J37: 25 | K37: 400
A38: April | B38: 17 | C38: 0.71 | D38: 10 | E38: 30 | F38: 300 | H38: April | I38: 16 | J38: 30 | K38: 480
A39: May | B39: 18.5 | C39: 0.73 | D39: 7.5 | E39: 31 | F39: 232.5 | H39: May | I39: 16 | J39: 31 | K39: 496
A40: June | B40: 20.7 | C40: 0.74 | D40: 5 | E40: 30 | F40: 150 | H40: June | I40: 16 | J40: 30 | K40: 480
A41: July | B41: 21.7 | C41: 0.72 | D41: 3 | E41: 31 | F41: 93 | H41: July | I41: 16 | J41: 31 | K41: 496
A42: August | B42: 19.3 | C42: 0.62 | D42: 0 | E42: 31 | F42: 0 | H42: August | I42: 16 | J42: 31 | K42: 496
A43: September | B43: 17.5 | C43: 0.53 | D43: 0 | E43: 30 | F43: 0 | H43: September | I43: 16 | J43: 30 | K43: 480
A44: October | B44: 14.2 | C44: 0.52 | D44: 14 | E44: 31 | F44: 434 | H44: October | I44: 13.05 | J44: 24 | K44: 313.2
A45: November | B45: 10.8 | C45: 0.44 | D45: 16.5 | E45: 30 | F45: 495 | H45: November | I45: 0 | J45: 0 | K45: 0
A46: December | B46: 11 | C46: 0.43 | D46: 18 | E46: 31 | F46: 558 | H46: December | I46: 0 | J46: 0 | K46: 0
B47: 16.2 | F47: =SUM(F35:F46) -> 3640.5 | K47: =SUM(K35:K46) -> 3641.2
E48: Default value for Supplemented Greenhouse is 2,120 hours | I48: Default value for Indoor is 5,475 hours

Sheet Lighting Layouts
A1: Insert/Embed both Baseline and Energy Efficient LED Layout Designs
I2: How to Embed a PDF File in an Excel Worksheet
I3: 1. Go to Insert tab and click on the Object icon in the Text group. ...
I4: 2. In the Object dialog box, select the 'Create New' tab and the select 'Adobe Acrobat Document' from the list. ...
I5: 3. Check the option – 'Display as icon'.
I6: 4. If desired, select "Change Icon" to modify the file name displayed (ex: Baseline Design, EE Design, etc.).
I7: 5. Click OK.
I8: 6. Select the PDF file to embed and click on Open.
B10: Baseline Design Layout | E10: Energy Efficient Design Layout | I10: 1) | R10: 2 - 5)
R26: 6)

Sheet QPL_Spec Sheets
A1: Insert/Embed Energy Efficient LED DLC QPL or Spec Sheets
Q2: How to Embed a PDF File in an Excel Worksheet
B3: New fixtures must be DLC listed in the Horticultural Lighting category or meet the following requirements: | Q3: 1. Go to Insert tab and click on the Object icon in the Text group. ...
B4: • Photosynthetic Photon Efficacy (PPE) ≥ 2,2 µmol/J. | Q4: 2. In the Object dialog box, select the 'Create New' tab and the select 'Adobe Acrobat Document' from the list. ...
B5: • Minimum warranty of five years. | Q5: 3. Check the option – 'Display as icon'.
B6: • Appropriate horticultural lighting designation by OSHA Nationally Recognized Testing Laboratories or Safety Compliance and Consulting Corporation. | Q6: 4. If desired, select "Change Icon" to modify the file name displayed (ex: Model XYZ QPL, Model ABC QPL, etc.).
Q7: 5. Click OK.
Q8: 6. Select the PDF file to embed and click on Open.
Q10: 1) | Z10: 2 - 5)
Z26: 6)

Sheet Proposal_Optional
A1: Insert/Embed Proposal **Optional**
G2: How to Embed a PDF File in an Excel Worksheet
G3: 1. Go to Insert tab and click on the Object icon in the Text group. ...
G4: 2. In the Object dialog box, select the 'Create New' tab and the select 'Adobe Acrobat Document' from the list. ...
G5: 3. Check the option – 'Display as icon'.
G6: 4. If desired, select "Change Icon" to modify the file name displayed (ex: Proposal [Month] [Year], etc.).
G7: 5. Click OK.
G8: 6. Select the PDF file to embed and click on Open.
G10: 1) | P10: 2 - 5)
P26: 6)

Sheet Savings and Incentives
F1: Last Updated: | G1: =MAX('Revision History'!A4:A32) -> 2022-01-06 | K1: Measure
B2: Additional Information: | K2: Grow Light System, Non-stacked indoor farm
K3: Grow Light System, Supplemented greenhouse
C5: SOLUTION (Choose from dropdown)
C7: BUILDING TYPE (Choose from dropdown) | K7: Existing Building
K8: New Construction
C10: ESTIMATED COMPLETION DATE
B12: Energy Savings (paste or link values from Calculations tab)
E13: EXAMPLE | F13: Fill in the blue cells only
D14: Baseline Annual Electrical Usage (kWh) | E14: 950731
D15: Proposed Annual Electrical Usage Without Automated Controls (kWh) | E15: 524011 | G15: Not a required field
D16: Proposed Annual Usage With Automated Controls (kWh) | E16: 445410 | G16: If controls are not installed, re-enter proposed usage without controls from cell E15
D17: Annual Energy Savings (kWh) | E17: =ROUND(E14-E16,0) -> 505321 | F17: =ROUND(F14-F16,0) -> 0
A18: Grow Light System, Supplemented greenhouse | D18: Lifecycle Energy Savings (kWh) | E18: =IF(B4="Grow Light System, Non-stacked indoor farm",E17*10,E17*20) -> 10106420 | F18: =IF(C4="Grow Light System, Non-stacked indoor farm",F17*10,F17*20) -> 0
A20: 0.3 | D20: Energy Reduction (%) | E20: =IFERROR(1-(E16/E14),"") -> 0.5315078608 | F20: =IFERROR(1-(F16/F14),"") ->  | G20: =IF(F20="","",IF(F20<29.99%,"Does not meet % Energy Reduction Requirement - May qualify for Custom Incentive","Does meet % Energy Reduction Requirement")) -> 
D21: Equivalent Photosynthetic Photon Flux Density (PPFD) | E21: verified | H21: Verified
H22: Not Verified
A23: 29.99 | D23: Baseline Electrical Demand (kW) | E23: 261.12
A24: Grow Light System, Supplemented greenhouse | D24: Proposed Electrical Demand (kW) | E24: 143.92
D25: Demand Savings (kW) | E25: =ROUND(E23-E24,2) -> 117.2 | F25: =ROUND(F23-F24,2) -> 0
B28: Estimated Incentive Amount | G28: Note: Blended electrical cost
D30: Cost of Electricity ($/kWh) | E30: 0.1105 | G30: Manually overwrite if needed. Default value of $0.1105 is EIA 2020 Commercial Annual Rate
D31: Project Cost for Baseline Design | E31: 154250
D32: Project Cost for Energy Efficient Design | E32: 324150
D33: Incremental Project Cost | E33: =IFERROR(E32-E31,"") -> 169900 | F33: =IFERROR(F32-F31,"") -> 0 | G33: =(IF(F33<0,"Does Not Qualify - Negative Incremental Project Cost","")) -> 
D34: Incentive Rate ($/kWh Saved) | E34: 0.06 | F34: 0.06
D36: Annual Energy Cost Savings | E36: =E17*E30 -> 55837.9705 | F36: =F17*F30 -> 0
D38: Total Incentive | E38: =E34*E17 -> 30319.26 | F38: =F34*F17 -> 0
D40: Incentive Limits
D41: Incentive Capped at 50% Cost | E41: =(ROUND(E33*0.5,2)) -> 84950 | F41: =(ROUND(F33*0.5,2)) -> 0
D42: Incentive Capped at $300,000 | E42: =MIN(E38,300000) -> 30319.26 | F42: =MIN(F38,300000) -> 0
D43: Incentive Based on Energy Savings | E43: =E38 -> 30319.26 | F43: =F38 -> 0
D44: Final Incentive | E44: =MIN(E41:E43) -> 30319.26 | F44: =MIN(F41:F43) -> 0

Sheet Revision History (hidden)
A1: Revision History
A3: Date | B3: Describe the revision that was made | C3: Name
A4: 2020-07-16 | B4: Added revision history tab | C4: TB
A5: 2021-01-04 | B5: Updated Application tab, removed Hort Lighting Sell Sheet since measures are in 2021 Ag Catalog, updated password to 'focus2021' | C5: Melissa
A6: 2021-01-22 | B6: Corrected incentive cap error in formula on Savings & Incentives tab | C6: Melissa
A7: 2021-02-05 | B7: Added 'Equivalent PPFD) check on Savings & Incentives Tab | C7: Melissa
A8: 2022-01-04 | B8: Updated Application tab to have text align with check boxes and dates and section 1. Updated logo as well. | C8: Jeremiah
A9: 2022-01-06 | B9: Added how to embed instructions on several tabs. Reformatted requirement text to bullets, renamed Invoice tab to Proposal | C9: Melissa
